[Event "2nd Asian Nations Team Cup U14 2019"]
[Site "Shenzhen"]
[Date "2019.12.24"]
[Round "7.19"]
[White "Lu, Miaoyi"]
[Black "Chen, Yuan"]
[Result "0-1"]
[ECO "E09"]
[WhiteElo "1787"]
[BlackElo "2056"]
[Annotator "NA RC"]
[PlyCount "50"]
[EventDate "2019.12.19"]
[EventType "team-tourn"]
[EventCountry "CHN"]
[SourceTitle "playchess.com"]
[Source "ChessBase"]
[SourceQuality "1"]
[WhiteTeam "China"]
[BlackTeam "China"]
[WhiteTeamCountry "CHN"]
[BlackTeamCountry "CHN"]
[TimeControl "5400+30"]

{[%evp 17,50,27,6,0,25,-1,0,0,-12,-11,32767,32767,32767,32767,32767,32767,32767,0,2,0,10,0,0,4,0,-447,-416,-1017,-1040,-29988,-29989,-29989,-29990,-29990,-29991]} 1. d4 {[%emt 0:00:00]} Nf6 {[%emt 0:00:00]} 2. c4 {[%emt 0:00:00]} e6 {[%emt 0:00:00]} 3. g3 {[%emt 0:00:00]} d5 {[%emt 0:00:00]} 4. Nf3 {[%emt 0:00:00]} c6 {[%emt 0:00:38]} 5. Bg2 {[%emt 0:00:00]} Be7 {[%emt 0:00:12]} 6. O-O {[%emt 0:00:05]} O-O {[%emt 0:00:08]} 7. Qc2 {[%emt 0:01:14]} Nbd7 {[%emt 0:00:10]} 8. Nbd2 {[%emt 0:00:07]} c5 {[%emt 0:00:35]} 9. cxd5 {[%emt 0:01:48]} exd5 {[%emt 0:00:10]} 10. dxc5 {[%emt 0:02:37] E09: Closed Catalan: Main Line: 7 Qc2 c6 8 Nbd2} (10. b3 b6 11. Bb2 Ba6 12. Rfe1 Rc8 13. Qd1 Re8 14. Rc1 Bd6 15. Nh4 Bf8 16. Ndf3 Ne4 17. Ne5 Ndf6 {1-0 (75) Pham,C (2353)-Shyam,N (2431) Ho Chi Minh City 2014}) 10... Nxc5 {[%emt 0:00:05]} 11. Nd4 {[%emt 0:03:34]} Bd7 $146 {[%emt 0:03:37]} ({Predecessor:} 11... Re8 12. b3 Bg4 13. f3 Ne6 14. Nxe6 Bxe6 15. Bb2 Qb6+ 16. Kh1 Qe3 17. Qd1 Nh5 {1-0 (37) Guimaraes,W (2232)-Manzi,L (2017) Rio de Janeiro 2018}) 12. N2f3 {[%emt 0:05:47]} Rc8 {[%emt 0:01:53]} 13. Qd1 {[%emt 0:02:21]} Bd6 {[%emt 0:01:56]} 14. Bg5 {[%emt 0:03:03]} Nce4 {[%emt 0:00:36]} 15. Bxf6 Qxf6 {[%emt 0:01:11]} 16. Qb3 {[%emt 0:01:50]} Bc6 {[%emt 0:01:54]} 17. Rac1 {[%emt 0:04:34]} Bc5 {[%emt 0:02:40]} 18. Nxc6 {[%emt 0:06:19]} bxc6 {[%emt 0:00:28]} 19. Qc2 {[%emt 0:02:51]} Bb6 {[%emt 0:01:56]} 20. e3 {[%emt 0:05:33]} Rfe8 {[%emt 0:04:04]} 21. Rfd1 $2 {[%emt 0:02:38] [#]} (21. Ne1 $11) 21... Nxf2 $1 {[%emt 0:03:50] Remove Defender} 22. Kxf2 {[%emt 0:15:49]} (22. Rf1 $142 Ng4 23. Kh1 Nxe3 {[%mdl 64] Double Attack} 24. Qd2) 22... Rxe3 {[%emt 0:00:24]} 23. Rd2 {[%emt 0:07:01]} Rxf3+ {[%emt 0:01:12]} 24. Ke1 {[%emt 0:00:18]} Re8+ {[%emt 0:00:04]} 25. Re2 {[%emt 0:00:26]} Ba5+ {[%emt 0:00:37] Bf1} 0-1

[Event "2nd Asian Nations Team Cup U14 2019"]
[Site "Shenzhen"]
[Date "2019.12.24"]
[Round "7.20"]
[White "Wei, Yaqing"]
[Black "Wu, Yixing"]
[Result "1/2-1/2"]
[ECO "B20"]
[WhiteElo "1621"]
[BlackElo "1767"]
[Annotator "NA RC"]
[PlyCount "81"]
[EventDate "2019.12.19"]
[EventType "team-tourn"]
[EventCountry "CHN"]
[SourceTitle "playchess.com"]
[Source "ChessBase"]
[SourceQuality "1"]
[WhiteTeam "China"]
[BlackTeam "China"]
[WhiteTeamCountry "CHN"]
[BlackTeamCountry "CHN"]
[TimeControl "5400+30"]

1. e4 {[%emt 0:00:00]} c5 {[%emt 0:00:00]} 2. Ne2 {[%emt 0:00:03]} d6 {[%emt 0:00:00]} 3. g3 {[%emt 0:00:40]} Nc6 {[%emt 0:00:07]} 4. Bg2 {[%emt 0:00:16]} g6 {[%emt 0:00:14]} 5. c3 {[%emt 0:00:24]} Bg7 {[%emt 0:02:29]} 6. d4 {[%emt 0:02:27]} e5 {[%emt 0:05:48]} 7. d5 {[%emt 0:04:13]} Nb8 {[%emt 0:03:26]} 8. f4 {[%emt 0:01:51]} Nd7 {[%emt 0:05:24]} 9. O-O {[%emt 0:05:43]} Ne7 {[%emt 0:00:32]} 10. Na3 {[%emt 0:05:57]} O-O {[%emt 0:02:43]} 11. Nc4 {[%emt 0:02:11]} Qc7 {[%emt 0:01:26]} 12. a4 {[%emt 0:05:57]} f5 {[%emt 0:01:38]} 13. fxe5 {[%emt 0:04:10]} Nxe5 {[%emt 0:00:33]} 14. Nxe5 {[%emt 0:00:35]} Bxe5 {[%emt 0:00:10]} 15. Bh6 {[%emt 0:04:04]} Rf7 {[%emt 0:02:02]} 16. Qd2 {[%emt 0:08:01]} Bd7 {[%emt 0:04:17]} 17. Bf4 {[%emt 0:13:48]} Bxf4 {[%emt 0:00:20]} 18. Rxf4 {[%emt 0:00:50]} Rd8 {[%emt 0:20:34]} 19. c4 {[%emt 0:06:00]} Nc8 {[%emt 0:04:49]} 20. b3 {[%emt 0:02:03]} Rdf8 {[%emt 0:02:55]} 21. Raf1 {[%emt 0:00:46]} Qd8 {[%emt 0:01:10]} 22. Nc3 {[%emt 0:02:06]} Qe7 {[%emt 0:01:43]} 23. Re1 {[%emt 0:06:08]} Qg5 {[%emt 0:06:04]} 24. e5 {[%emt 0:02:04]} dxe5 {[%emt 0:00:45]} 25. Rxe5 {[%emt 0:00:21]} Qf6 {[%emt 0:06:14]} 26. Qe2 {[%emt 0:02:50]} g5 {[%emt 0:02:38]} 27. Rf1 {[%emt 0:00:58]} Ne7 {[%emt 0:02:25]} 28. Re3 {[%emt 0:01:54]} f4 {[%emt 0:04:57]} 29. Rd3 {[%emt 0:02:48]} Bf5 {[%emt 0:02:57]} 30. Ne4 {[%emt 0:01:11]} Qg6 {[%emt 0:01:20]} 31. Rd2 {[%emt 0:00:35]} f3 {[%emt 0:01:26]} 32. Rxf3 {[%emt 0:02:52]} Bg4 {[%emt 0:01:50]} 33. Nf6+ {[%emt 0:01:46]} Rxf6 {[%emt 0:00:52]} 34. Rxf6 {[%emt 0:00:27]} Qxf6 {[%emt 0:01:34]} 35. Qxg4 {[%emt 0:00:28]} Qc3 {[%emt 0:06:25]} 36. Qxg5+ {[%emt 0:05:49]} Ng6 {[%emt 0:00:05]} 37. h4 {[%emt 0:01:04]} Kh8 {[%emt 0:01:51]} 38. h5 {[%emt 0:02:07]} Qc1+ {[%emt 0:00:12]} 39. Kh2 {[%emt 0:00:10]} Rf2 {[%emt 0:00:20]} 40. Qd8+ {[%emt 0:01:33]} Rf8 {[%emt 0:00:04]} 41. Qg5 {[%emt 0:00:08]} 1/2-1/2

[Event "2nd Asian Nations Team Cup U14 2019"]
[Site "Shenzhen"]
[Date "2019.12.25"]
[Round "8.1"]
[White "Yin, Richard"]
[Black "Jin Yueheng"]
[Result "0-1"]
[ECO "B15"]
[WhiteElo "1427"]
[BlackElo "1924"]
[Annotator "NA RC"]
[PlyCount "94"]
[EventDate "2019.12.19"]
[EventType "team-tourn"]
[EventCountry "CHN"]
[SourceTitle "playchess.com"]
[Source "ChessBase"]
[SourceQuality "1"]
[WhiteTeam "Hong Kong"]
[BlackTeam "China"]
[WhiteTeamCountry "HKG"]
[BlackTeamCountry "CHN"]
[TimeControl "5400+30"]

{[%evp 8,93,37,28,51,30,18,13,10,8,7,20,10,-10,0,-25,0,-4,-9,-107,-122,-200,-206,-254,-214,-214,-197,-208,-178,-332,-344,-321,-352,-471,-430,-808,-891,-693,-859,-864,-875,-29984,-750,-1194,-361,-369,-360,32767,32767,32767,32767,-319,-239,-282,-285,-264,-315,-313,-276,-337,-323,-381,-412,-374,-408,-461,-604,-596,-779,-720,-1035,-5523,-606,-962,-1509,-1800,-6250,-2070,-5703,-1706,-12491,-29967,-29951,-29978,-29969,-29983,-12843,-29973]} 1. e4 {[%emt 0:00:00]} c6 {[%emt 0:00:00]} 2. d4 {[%emt 0:00:00]} d5 {[%emt 0:00:00]} 3. Nc3 {[%emt 0:00:00]} dxe4 {[%emt 0:00:00]} 4. Nxe4 {[%emt 0:00:00]} Nf6 {[%emt 0:00:02]} 5. Nxf6+ {[%emt 0:04:57]} exf6 {[%emt 0:00:01]} 6. Nf3 {[%emt 0:01:01]} Bd6 {[%emt 0:00:04]} 7. Be2 {[%emt 0:02:30]} O-O {[%emt 0:00:06]} 8. O-O {[%emt 0:00:09]} Re8 {[%emt 0:00:03]} 9. c4 {[%emt 0:08:04] B15: Caro-Kann: 3 Nc3: 3...g6 and 3...dxe4 4 Nxe4 Nf6 5 Nxf6+ exf6} Nd7 {[%emt 0:00:14]} 10. b3 {[%emt 0:06:50]} (10. Bd3 Nf8 11. h3 Ng6 12. Qc2 Qa5 13. c5 Bb8 14. Bd2 Qd8 15. Rfe1 Be6 16. Bc4 Nf8 {0-1 (47) Nepomniachtchi,I (2767)-Carlsen,M (2840) Doha 2016}) 10... Nf8 {[%emt 0:00:05]} 11. Bd3 $146 {[%emt 0:05:45]} ({Predecessor:} 11. Qc2 Ng6 12. Be3 Qc7 13. Rfe1 Bg4 14. h3 Be6 15. Rad1 Qd7 16. Bf1 {½-½ (37) Cruz,J (2059)-Spraggett,K (2534) Coimbra 2017}) 11... Ng6 {[%emt 0:00:14]} 12. h3 {[%emt 0:04:20]} Be6 {[%emt 0:00:06]} 13. Qc2 {[%emt 0:00:48] [#]} (13. Bc2 $11) 13... Qd7 $1 {[%emt 0:00:04]} 14. Bb2 {[%emt 0:03:26] [#]} (14. Nh2 $17) 14... Bxh3 $1 {[%emt 0:00:29]} 15. Bxg6 {[%emt 0:05:11]} hxg6 {[%emt 0:00:31]} 16. Nh2 {[%emt 0:19:49]} Bf5 {[%emt 0:00:31]} 17. Qd2 {[%emt 0:00:15]} g5 {[%emt 0:00:09]} 18. g3 $2 {[%emt 0:01:07]} (18. Rfe1) 18... Be4 {[%emt 0:02:28]} 19. f3 {[%emt 0:02:28]} Bg6 {[%emt 0:00:55]} (19... Bxg3 $2 20. fxe4 Rxe4 21. Rf3 $19) 20. f4 {[%emt 0:02:42]} (20. Kg2 {was called for.}) 20... Qh3 {[%emt 0:01:43]} 21. Qf2 {[%emt 0:04:11]} (21. Qg2 $142 Qxg2+ 22. Kxg2) 21... gxf4 {[%emt 0:01:42]} 22. gxf4 {[%emt 0:01:22]} Re3 {[%emt 0:02:42]} 23. Nf3 {[%emt 0:00:16]} Bxf4 {[%emt 0:01:56]} 24. Bc1 {[%emt 0:00:55] [#]} Re4 {[%emt 0:00:14]} (24... Rxf3 $142 $1 25. Bxf4 (25. Qxf3 Qh2#) 25... Rxf2 26. Kxf2 Be4) 25. Qg2 {[%emt 0:01:24]} Qxg2+ $2 {[%emt 0:00:20]} (25... Be3+ 26. Bxe3 {[#]} Rg4 $1 {[%mdl 512]} 27. Qxg4 Qxg4+ 28. Kf2 Bh5) 26. Kxg2 {[%emt 0:00:04]} Bxc1 {[%emt 0:00:11]} 27. Raxc1 {[%emt 0:00:08]} Re2+ {[%emt 0:00:04]} 28. Rf2 {[%emt 0:00:03]} Rae8 {[%emt 0:00:12]} 29. Rd1 {[%emt 0:00:31]} Bh5 {[%emt 0:00:26]} 30. Rd2 {[%emt 0:00:28]} Bxf3+ {[%emt 0:01:10]} 31. Kxf3 {[%emt 0:00:15]} Rxf2+ {[%emt 0:00:06]} 32. Kxf2 {[%emt 0:00:23]} g5 {[%emt 0:00:30]} 33. Kf3 {[%emt 0:00:11]} Kg7 {[%emt 0:00:05]} 34. a4 {[%emt 0:00:04]} Kg6 {[%emt 0:00:03]} 35. b4 {[%emt 0:00:06]} f5 {[%emt 0:00:08]} 36. b5 {[%emt 0:00:14]} g4+ {[%emt 0:00:13]} 37. Kg2 {[%emt 0:00:22]} f4 {[%emt 0:00:17]} 38. a5 {[%emt 0:00:39]} cxb5 {[%emt 0:00:09]} 39. cxb5 {[%emt 0:00:03]} Rd8 {[%emt 0:00:48]} (39... f3+ $142 40. Kg3 Re2 41. Rxe2 fxe2) 40. b6 {[%emt 0:00:22]} axb6 {[%emt 0:00:06]} 41. axb6 {[%emt 0:00:38]} Rd6 {[%emt 0:00:03]} 42. d5 {[%emt 0:00:07]} Kf5 {[%emt 0:00:09]} 43. Kf2 {[%emt 0:00:11]} f6 {[%emt 0:00:17]} 44. Rd4 {[%emt 0:01:03] [#]} Ke5 {[%emt 0:00:03]} 45. Rc4 {[%emt 0:00:02]} Rxb6 {[%emt 0:00:12]} 46. d6 {[%emt 0:00:27]} Rxd6 {[%emt 0:00:06]} 47. Rb4 {[%emt 0:00:16]} Rd2+ {[%emt 0:00:13]} 0-1

[Event "2nd Asian Nations Team Cup U14 2019"]
[Site "Shenzhen"]
[Date "2019.12.25"]
[Round "8.2"]
[White "Zhang, Di"]
[Black "Lam, Chun Yung Samuel"]
[Result "1-0"]
[ECO "E09"]
[WhiteElo "2013"]
[BlackElo "1288"]
[Annotator "NA RC"]
[PlyCount "73"]
[EventDate "2019.12.19"]
[EventType "team-tourn"]
[EventCountry "CHN"]
[SourceTitle "playchess.com"]
[Source "ChessBase"]
[SourceQuality "1"]
[WhiteTeam "China"]
[BlackTeam "Hong Kong"]
[WhiteTeamCountry "CHN"]
[BlackTeamCountry "HKG"]
[TimeControl "5400+30"]

{[%evp 8,73,12,14,20,25,20,22,16,0,14,0,37,31,36,33,35,35,37,9,29,31,42,35,34,31,74,27,54,50,118,67,120,158,268,189,228,171,206,140,155,140,181,209,201,150,389,556,29989,29990,29992,29991,29990,29992,29993,29994,29994,29994,29994,29994,29996,1524,29997,29997,29998,29997,29997,29998]} 1. Nf3 {[%emt 0:00:00]} d5 {[%emt 0:00:03]} 2. g3 {[%emt 0:00:00]} Nf6 {[%emt 0:00:08]} 3. Bg2 {[%emt 0:00:00]} e6 {[%emt 0:00:22]} 4. d4 {[%emt 0:00:05]} Be7 {[%emt 0:00:35]} 5. O-O {[%emt 0:00:08]} O-O {[%emt 0:00:15]} 6. c4 {[%emt 0:00:17]} c6 {[%emt 0:00:21]} 7. Nbd2 {[%emt 0:00:06]} b6 {[%emt 0:00:09]} 8. Qc2 {[%emt 0:00:08]} Bb7 {[%emt 0:00:11]} 9. e4 {[%emt 0:01:02]} dxe4 {[%emt 0:00:48]} 10. Nxe4 {[%emt 0:00:02]} Nbd7 {[%emt 0:00:08]} 11. Nxf6+ {[%emt 0:00:30]} Nxf6 {[%emt 0:00:12] E09: Closed Catalan: Main Line: 7 Qc2 c6 8 Nbd2} 12. c5 {[%emt 0:00:20]} (12. Rd1 Qc8 13. c5 Rd8 14. Bf4 Nd5 15. Bg5 Qc7 16. Bxe7 Qxe7 17. Rac1 Rac8 18. a3 bxc5 19. dxc5 e5 20. Re1 f6 21. Nd2 Rb8 22. f4 Qd7 23. fxe5 fxe5 24. Nc4 {1-0 (24) Istratescu,A (2580)-Martinovici,I (2338) Alba Iulia 2017}) 12... Nd5 {[%emt 0:02:32]} 13. Bd2 {[%emt 0:02:10]} Bf6 {[%emt 0:17:50]} 14. Rfe1 {[%emt 0:02:14]} Re8 $146 {[%emt 0:08:47]} ({Predecessor:} 14... Qc7 15. Rac1 Rfd8 16. Qe4 Rd7 17. h4 Rad8 18. h5 Be7 19. Qb1 bxc5 {1-0 (40) Hernando Rodrigo,J (2348)-Morais Carreras,J (1989) Llinars del Valles 2014}) 15. h4 {[%emt 0:00:11]} h6 {[%emt 0:05:59]} 16. Rad1 {[%emt 0:02:04]} Qc7 {[%emt 0:01:29]} 17. b3 {[%emt 0:05:04]} ({White should play} 17. g4 $16) 17... Rad8 {[%emt 0:01:32]} 18. Bf1 {[%emt 0:00:53]} b5 {[%emt 0:02:05]} (18... Qc8 $14) 19. Qe4 {[%emt 0:01:02]} a5 {[%emt 0:02:10]} 20. Bd3 {[%emt 0:00:12]} a4 {[%emt 0:01:10]} (20... Kf8 $16 21. a4 b4) 21. Qh7+ {[%emt 0:02:49]} Kf8 {[%emt 0:00:11]} 22. Be4 {[%emt 0:00:15]} (22. bxa4 $142 bxa4 23. g4) 22... axb3 {[%emt 0:01:14]} 23. axb3 {[%emt 0:01:11]} Ke7 {[%emt 0:04:35]} 24. Bxd5 $1 {[%emt 0:04:06]} Rxd5 {[%emt 0:03:19]} 25. Bf4 {[%emt 0:00:00]} Qd8 {[%emt 0:02:05]} 26. Be5 {[%emt 0:00:00]} Bxe5 $2 {[%emt 0:01:50]} (26... Rh8 $16 27. Qe4 Rd7) 27. Nxe5 {[%emt 0:00:00]} Rxd4 {[%emt 0:01:33] [#]} (27... Rg8 $18 28. Ra1 Qb8) 28. Qxg7 $1 {[%emt 0:00:00]} Rf8 {[%emt 0:01:41]} 29. Ng6+ {[%emt 0:00:00]} Kd7 {[%emt 0:00:35]} 30. Rxd4+ {[%emt 0:00:00]} Kc7 {[%emt 0:00:07]} 31. Nxf8 {[%emt 0:00:00]} Qe7 {[%emt 0:00:18] [#]} 32. Nxe6+ $1 {[%emt 0:00:00]} Kb8 {[%emt 0:00:12]} 33. Rd8+ {[%emt 0:00:38]} Ka7 {[%emt 0:00:13]} 34. Ra1+ {[%emt 0:00:26]} Ba6 {[%emt 0:00:10]} 35. Qe5 {[%emt 0:00:05]} Qb7 {[%emt 0:00:21]} 36. Nc7 {[%emt 0:00:09]} f6 {[%emt 0:00:08]} 37. Qe7 {[%emt 0:00:07]} 1-0

[Event "2nd Asian Nations Team Cup U14 2019"]
[Site "Shenzhen"]
[Date "2019.12.25"]
[Round "8.3"]
[White "Li, Yucheng Robinson"]
[Black "Chen, Yuan"]
[Result "0-1"]
[ECO "B23"]
[WhiteElo "1185"]
[BlackElo "2056"]
[Annotator "NA RC"]
[PlyCount "62"]
[EventDate "2019.12.19"]
[EventType "team-tourn"]
[EventCountry "CHN"]
[SourceTitle "playchess.com"]
[Source "ChessBase"]
[SourceQuality "1"]
[WhiteTeam "Hong Kong"]
[BlackTeam "China"]
[WhiteTeamCountry "HKG"]
[BlackTeamCountry "CHN"]
[TimeControl "5400+30"]

{[%evp 22,57,-20,-26,-25,-31,-37,-25,-32,-17,-32,-44,-45,-129,-99,-141,-124,-102,-151,-122,-72,-108,-11,-107,-89,-306,-355,-897,-1064,-1037,-1384,-1174,-1632,-1814,-1307,-29988,-29989,-29989]} 1. e4 {[%emt 0:00:00]} c5 {[%emt 0:00:00]} 2. Nc3 {[%emt 0:00:26]} e6 {[%emt 0:00:00]} 3. d3 {[%emt 0:00:21]} d5 {[%emt 0:00:07]} 4. exd5 {[%emt 0:00:28]} exd5 {[%emt 0:00:04]} 5. Nf3 {[%emt 0:00:19]} Nf6 {[%emt 0:00:16]} 6. Ne2 {[%emt 0:00:19]} Nc6 {[%emt 0:00:46]} 7. Ng3 {[%emt 0:00:09]} Bd6 {[%emt 0:00:33]} 8. Be2 {[%emt 0:00:19]} O-O {[%emt 0:00:04]} 9. Bg5 {[%emt 0:00:28]} h6 {[%emt 0:00:10]} 10. Bxf6 {[%emt 0:00:22]} Qxf6 {[%emt 0:00:04]} 11. c3 {[%emt 0:01:19]} Ne7 {[%emt 0:03:48]} (11... g6 $17 12. O-O h5) 12. O-O {[%emt 0:01:16]} Ng6 {[%emt 0:00:09]} 13. d4 {[%emt 0:01:26]} c4 {[%emt 0:00:39]} 14. b3 {[%emt 0:00:24]} cxb3 {[%emt 0:00:30]} 15. axb3 {[%emt 0:00:42]} Nf4 {[%emt 0:00:14]} 16. c4 {[%emt 0:00:43]} Bg4 {[%emt 0:00:37]} 17. Re1 {[%emt 0:03:00]} (17. h3 $15 Nxe2+ 18. Qxe2) 17... Rfe8 {[%emt 0:01:26]} 18. Qd2 {[%emt 0:09:01]} Nxe2+ {[%emt 0:01:29]} 19. Rxe2 {[%emt 0:00:10]} Bxf3 {[%emt 0:00:10]} 20. gxf3 {[%emt 0:00:10]} Qxf3 {[%emt 0:01:03]} ({Black should play} 20... Rxe2 21. Nxe2 Qxf3) 21. Re3 {[%emt 0:00:26]} Qg4 {[%emt 0:01:50] [#]} (21... Bf4 $17 22. Rxf3 Bxd2) 22. Rxe8+ {[%emt 0:04:13]} (22. Rxa7 $1 $11 {[%mdl 512] keeps the balance.} Rec8 (22... Rxa7 23. Rxe8+) 23. Rxa8 Rxa8 24. Kg2) 22... Rxe8 {[%emt 0:00:02]} 23. Rxa7 $2 {[%emt 0:01:46]} (23. c5 $17 Bb8 24. Re1) 23... h5 {[%emt 0:00:34]} 24. Rxb7 $2 {[%emt 0:05:57]} (24. Ra1 h4 {[%mdl 64] Pin} 25. Qd1 Qxd1+ 26. Rxd1 hxg3 27. hxg3) 24... h4 {[%emt 0:00:17] Pin} 25. Qc3 {[%emt 0:05:33]} hxg3 {[%emt 0:05:29]} 26. hxg3 {[%emt 0:00:30]} Qd1+ {[%emt 0:01:42]} 27. Kg2 {[%emt 0:00:32]} Re1 {[%emt 0:19:17]} 28. cxd5 {[%emt 0:19:50]} Rg1+ {[%emt 0:00:00]} 29. Kh2 {[%emt 0:00:07]} Bxg3+ {[%emt 0:00:00]} 30. fxg3 {[%emt 0:00:44]} Rh1+ {[%emt 0:00:00]} 31. Kg2 {[%emt 0:00:08]} Qf1# {[%emt 0:00:00]} 0-1

[Event "2nd Asian Nations Team Cup U14 2019"]
[Site "Shenzhen"]
[Date "2019.12.25"]
[Round "8.4"]
[White "Wei, Yaqing"]
[Black "Huang, Yuen Tung"]
[Result "1-0"]
[ECO "C24"]
[WhiteElo "1621"]
[BlackElo "1293"]
[Annotator "NA RC"]
[PlyCount "111"]
[EventDate "2019.12.19"]
[EventType "team-tourn"]
[EventCountry "CHN"]
[SourceTitle "playchess.com"]
[Source "ChessBase"]
[SourceQuality "1"]
[WhiteTeam "China"]
[BlackTeam "Hong Kong"]
[WhiteTeamCountry "CHN"]
[BlackTeamCountry "HKG"]
[TimeControl "5400+30"]

1. e4 {[%emt 0:00:00]} e5 {[%emt 0:00:00]} 2. Bc4 {[%emt 0:00:00]} Nf6 {[%emt 0:00:00]} 3. d3 {[%emt 0:00:09]} Bc5 {[%emt 0:00:00]} 4. Nf3 {[%emt 0:00:06]} d6 {[%emt 0:00:01]} 5. h3 {[%emt 0:00:25]} Nc6 {[%emt 0:00:05]} 6. a4 {[%emt 0:00:55]} O-O {[%emt 0:00:55]} 7. c3 {[%emt 0:00:09]} a6 {[%emt 0:00:04]} 8. Nbd2 {[%emt 0:00:14]} Nh5 {[%emt 0:01:20]} 9. Nb3 {[%emt 0:09:54]} Ba7 {[%emt 0:00:55]} 10. Bg5 {[%emt 0:06:13]} Qe8 {[%emt 0:01:51]} 11. O-O {[%emt 0:02:29]} h6 {[%emt 0:00:36]} 12. Be3 {[%emt 0:00:35]} Be6 {[%emt 0:00:16]} 13. Nbd2 {[%emt 0:07:50]} Bxc4 {[%emt 0:17:44]} 14. Nxc4 {[%emt 0:00:27]} Qe6 {[%emt 0:00:08]} 15. Nh4 {[%emt 0:04:16]} Nf6 {[%emt 0:02:53]} 16. Nf5 {[%emt 0:12:37]} Ne7 {[%emt 0:03:03]} 17. Bxa7 {[%emt 0:03:05]} Rxa7 {[%emt 0:00:13]} 18. f4 {[%emt 0:04:04]} exf4 {[%emt 0:07:36]} 19. Nxe7+ {[%emt 0:01:20]} Qxe7 {[%emt 0:00:18]} 20. Rxf4 {[%emt 0:00:06]} d5 {[%emt 0:02:30]} 21. exd5 {[%emt 0:00:22]} Nxd5 {[%emt 0:00:25]} 22. Re4 {[%emt 0:00:13]} Qc5+ {[%emt 0:00:58]} 23. Kh1 {[%emt 0:02:45]} Qf2 {[%emt 0:03:15]} 24. Qf1 {[%emt 0:00:00]} Qxf1+ {[%emt 0:00:36]} 25. Rxf1 {[%emt 0:00:00]} Raa8 {[%emt 0:00:04]} 26. Rf5 {[%emt 0:00:21]} Rad8 {[%emt 0:02:05]} 27. d4 {[%emt 0:02:10]} f6 {[%emt 0:04:52]} 28. Na5 {[%emt 0:00:52]} g6 {[%emt 0:03:42]} 29. Rf2 {[%emt 0:01:33]} b6 {[%emt 0:01:14]} 30. Nc6 {[%emt 0:05:19]} Rd6 {[%emt 0:04:54]} 31. Ne7+ {[%emt 0:01:08]} Kf7 {[%emt 0:01:42]} 32. Rfe2 {[%emt 0:01:04]} Re8 {[%emt 0:02:06]} 33. Nf5 {[%emt 0:01:05]} Rdd8 {[%emt 0:03:52]} 34. Nxh6+ {[%emt 0:00:00]} Kf8 {[%emt 0:00:11]} 35. Rxe8+ {[%emt 0:00:19]} Rxe8 {[%emt 0:00:11]} 36. Rxe8+ {[%emt 0:00:05]} Kxe8 {[%emt 0:00:05]} 37. Ng4 {[%emt 0:00:32]} Kf7 {[%emt 0:00:07]} 38. g3 {[%emt 0:01:10]} Ke6 {[%emt 0:00:56]} 39. Kg2 {[%emt 0:00:24]} Ke7 {[%emt 0:03:47]} 40. Kf3 {[%emt 0:00:20]} Ke6 {[%emt 0:00:10]} 41. h4 {[%emt 0:01:34]} Kf5 {[%emt 0:12:29]} 42. Ne3+ {[%emt 0:10:55]} Nxe3 {[%emt 0:00:00]} 43. Kxe3 {[%emt 0:00:09]} c6 {[%emt 0:00:00]} 44. Kf3 {[%emt 0:00:19]} Ke6 {[%emt 0:00:00]} 45. Ke4 {[%emt 0:01:25]} Kd6 {[%emt 0:04:03]} 46. g4 {[%emt 0:00:26]} Ke6 {[%emt 0:00:35]} 47. h5 {[%emt 0:03:22]} Kf7 {[%emt 0:03:41]} 48. hxg6+ {[%emt 0:00:00]} Kxg6 {[%emt 0:00:07]} 49. Kf4 {[%emt 0:00:00]} Kf7 {[%emt 0:01:00]} 50. Kf5 {[%emt 0:00:00]} Ke7 {[%emt 0:00:07]} 51. b3 {[%emt 0:00:00]} Kf7 {[%emt 0:00:34]} 52. c4 {[%emt 0:00:33]} Ke7 {[%emt 0:03:24]} 53. d5 {[%emt 0:00:23]} c5 {[%emt 0:00:25]} 54. d6+ {[%emt 0:00:18]} Kf7 {[%emt 0:00:32]} 55. d7 {[%emt 0:00:08]} Ke7 {[%emt 0:00:15]} 56. d8=Q+ {[%emt 0:00:10]} 1-0